fUSD/lending_fUSD_20251217
["ID","MTS","AMOUNT","RATE_DAILY","PERIOD"]
[398894272,1765966243900,-547.0,0.00017455,2]
[398894273,1765966243911,-547.0,0.00017469,2]
[398894274,1765966243920,-1098.0,0.00017481,2]
[398894275,1765966243929,-1000.0,0.00017521,2]
[398894276,1765966243938,-500.0,0.00017521,2]
[398894277,1765966243947,-1000.0,0.00017521,2]
[398894278,1765966243956,-1000.0,0.00017521,2]
[398894279,1765966243965,-1000.0,0.00017521,2]
[398894280,1765966243974,-500.0,0.00017521,2]
[398894281,1765966243983,-334.11795043,0.00017521,2]
[398894282,1765966243993,-500.0,0.00017521,2]
[398894283,1765966244003,-266.8433042,0.00017521,2]
[398894284,1765966244012,-1002.53684068,0.00017521,2]
[398894285,1765966244021,-730.23,0.00017534,2]
[398894286,1765966244030,-619.0,0.00017534,4]
[398894287,1765966244039,-600.0,0.00017534,2]
[398894288,1765966244049,-206.17,0.00017566,2]
[398894289,1765966244059,-1041.55692108,0.00017567,2]
[398894290,1765966244068,-266.0,0.00017606,2]
[398894291,1765966244077,-547.0,0.00017618,2]
[398894292,1765966244086,-574.12855637,0.00017663,2]
[398894293,1765966244096,-2112.0,0.00017663,2]
[398894294,1765966244105,-500.0,0.00017667,2]
[398894295,1765966244114,-9053.55717361,0.00017668,2]
[398894296,1765966244123,-6540.47178478,0.0001767,2]
[398894297,1765966244132,-547.0,0.0001768,2]
[398894298,1765966244141,-547.0,0.00017691,2]
[398894299,1765966244150,-403.0,0.000177,5]
[398894300,1765966244160,-150.0,0.00017721,2]
[398894301,1765966244169,-150.0,0.00017721,2]
[398894302,1765966244179,-547.0,0.0001773,2]
[398894303,1765966244188,-516.0,0.00017731,2]
[398894304,1765966244198,-158.05,0.00017743,2]
[398894305,1765966244207,-547.0,0.00017765,2]
[398894306,1765966244217,-547.0,0.00017777,2]
[398894307,1765966244226,-730.23,0.00017808,2]
[398894308,1765966244235,-619.0,0.00017808,5]
[398894309,1765966244244,-250.0,0.00017829,2]
[398894310,1765966244253,-150.0,0.00017829,2]
[398894311,1765966244263,-200.0,0.00017829,2]
[398894312,1765966244275,-200.0,0.00017829,2]
[398894313,1765966244284,-152.0,0.00017829,2]
[398894314,1765966244293,-216.856,0.00017829,2]
[398894315,1765966244303,-150.643,0.00017829,2]
[398894316,1765966244312,-151.676,0.00017829,2]
[398894317,1765966244321,-264.673,0.00017829,2]
[398894318,1765966244330,-206.581,0.00017829,2]
[398894319,1765966244339,-150.318,0.00017829,2]
[398894320,1765966244349,-163.22,0.00017829,2]
[398894321,1765966244358,-273.368,0.00017829,2]
[398894322,1765966244368,-150.0,0.00017829,2]
[398894323,1765966244377,-152.096,0.00017829,2]
[398894324,1765966244386,-152.0,0.00017829,2]
[398894325,1765966244395,-3453.0,0.00017829,2]
[398894326,1765966244404,-1326.104,0.00017829,2]
[398894327,1765966244414,-1607.0,0.00017829,2]
[398894328,1765966244423,-612.0,0.00017829,2]
[398894329,1765966244432,-1261.0,0.00017829,2]
[398894330,1765966244442,-663.522,0.00017829,2]
[398894331,1765966244451,-266.0,0.0001786,2]
[398894332,1765966244461,-900.0,0.0001789,2]
[398894333,1765966244470,-10000.0,0.000179,2]
[398894334,1765966244479,-2125.363,0.000179,2]
[398894335,1765966244489,-1041.55692108,0.000179,2]
[398894336,1765966244498,-266.0,0.00017908,2]
[398894337,1765966244507,-206.15,0.00017946,2]
[398894338,1765966244517,-3500.0,0.0001799,2]
[398894339,1765966244526,-151.0,0.00017997,2]
[398894340,1765966244535,-500.0,0.00017999,2]
[398894341,1765966244545,-500.0,0.00017999,2]
[398894342,1765966244554,-300.0,0.00017999,2]
[398894343,1765966244563,-500.0,0.00017999,2]
[398894344,1765966244572,-500.0,0.00017999,2]
[398894345,1765966244581,-500.0,0.00017999,2]
[398894346,1765966244590,-500.0,0.00017999,2]
[398894347,1765966244599,-412824.73982358,0.00018,2]
[398894350,1765966245891,-362.5,0.00018,2]
[398894351,1765966245903,-525.16036174,0.00018,2]
[398894352,1765966245922,-38119.65746043,0.00018,2]
[398894353,1765966246043,-526.28874271,0.00016986,2]
[398894354,1765966246052,-157.45493889,0.00016999,2]
[398894355,1765966246061,-157.45493889,0.00017018,2]
[398894356,1765966246070,-526.28874271,0.00017018,2]
[398894357,1765966246078,-6524.0,0.00017122,2]
[398894358,1765966246087,-172587.34333731,0.00018,2]
[398894359,1765966246119,-21455.53499999,0.00018,2]
[398894361,1765966246505,-500.0,0.00014117,2]
[398894362,1765966246515,-246.40126835,0.00016438,2]
[398894363,1765966246525,-253.59873165,0.00016438,2]
[398894364,1765966246534,-155.96126832,0.00016438,2]
[398894365,1765966246550,-344.03873168,0.00016438,2]
[398894366,1765966246559,-500.0,0.00016438,2]
[398894367,1765966246569,-500.0,0.00016438,2]
[398894368,1765966246578,-500.0,0.00016438,2]
[398894369,1765966246588,-500.0,0.00016438,2]
[398894370,1765966246596,-500.0,0.00016438,2]
[398894371,1765966246605,-500.0,0.00016438,2]
[398894372,1765966246614,-500.0,0.00016438,2]
[398894373,1765966246622,-500.0,0.00016438,2]
[398894374,1765966246631,-500.0,0.00016438,2]
[398894375,1765966246639,-500.0,0.00016438,2]
[398894376,1765966246648,-500.0,0.00016438,2]
[398894377,1765966246657,-500.0,0.00016438,2]
[398894378,1765966246666,-500.0,0.00016438,2]
[398894379,1765966246674,-500.0,0.00016438,2]
[398894380,1765966246683,-500.0,0.00016438,2]
[398894381,1765966246691,-500.0,0.00016438,2]
[398894382,1765966246700,-500.0,0.00016438,2]
[398894383,1765966246708,-500.0,0.00016438,2]
[398894384,1765966246717,-647.30177898,0.00016438,2]
[398894385,1765966246727,-500.0,0.00016438,2]
[398894386,1765966246735,-496.186,0.0001727,2]
[398894387,1765966246744,-1000.0,0.0001727,2]
[398894388,1765966246752,-1000.0,0.0001727,2]
[398894389,1765966246761,-12058.66541314,0.00018,2]
[398894390,1765966246808,-2036.50935644,0.00015194,2]
[398894391,1765966246857,-1028.75333197,0.00015194,2]
[398894400,1765966599550,162.961364,0.00011,2]
[398894408,1765967060222,-166.66,0.00013993,2]
[398894409,1765967060244,-300.0,0.00014025,2]
[398894410,1765967060266,-250.0,0.00014056,2]
[398894411,1765967060287,-195.0,0.00014056,2]
[398894412,1765967060307,-1000.0,0.00014119,2]
[398894413,1765967060329,-150.0,0.00014119,2]
[398894414,1765967060352,-300.0,0.00014208,2]
[398894415,1765967060372,-300.0,0.00014208,2]
[398894416,1765967060393,-300.0,0.00014208,2]
[398894417,1765967060414,-166.66,0.00014288,2]
[398894418,1765967060436,-166.66,0.00014583,2]
[398894419,1765967060456,-363.0,0.00014616,2]
[398894420,1765967060478,-772.0,0.00014645,2]
[398894421,1765967060505,-166.66,0.00014877,2]
[398894422,1765967060525,-2500.0,0.00014963,2]
[398894423,1765967060546,-300.0,0.00014967,2]
[398894424,1765967060567,-1200.0,0.00014967,2]
[398894425,1765967060591,-757.0,0.00014967,2]
[398894426,1765967060612,-11438.73821906,0.00014968,2]
[398894427,1765967060632,-906.14338465,0.00014968,2]
[398894428,1765967060653,-300.0,0.00015059,2]
[398894429,1765967060673,-5427.77,0.0001506,2]
[398894430,1765967060694,-8604.70839629,0.0001506,2]
[398894431,1765967064549,-1395.28160371,0.0001506,2]
[398894432,1765967064572,-346.68,0.0001506,2]
[398894433,1765967064598,-500.0,0.0001506,2]
[398894434,1765967064624,-500.0,0.0001506,2]
[398894435,1765967064646,-577.12122136,0.0001506,2]
[398894436,1765967064669,-500.0,0.0001506,2]
[398894437,1765967064691,-576.24507645,0.0001506,2]
[398894438,1765967064716,-500.0,0.0001506,2]
[398894439,1765967064741,-500.0,0.0001506,2]
[398894440,1765967064765,-500.0,0.0001506,2]
[398894441,1765967064787,-500.0,0.0001506,2]
[398894442,1765967064810,-214.38107329,0.0001506,2]
[398894443,1765967064835,-500.0,0.0001506,2]
[398894444,1765967064857,-500.0,0.0001506,2]
[398894445,1765967064879,-187.63361989,0.0001506,2]
[398894446,1765967065383,-500.0,0.0001506,2]
[398894447,1765967065409,-500.0,0.0001506,2]
[398894448,1765967065431,-500.0,0.0001506,2]
[398894449,1765967065455,-500.0,0.0001506,2]
[398894450,1765967065478,-500.0,0.0001506,2]
[398894451,1765967065506,-500.0,0.0001506,2]
[398894452,1765967065527,-500.0,0.0001506,2]
[398894453,1765967065555,-500.0,0.0001506,2]
[398894454,1765967065579,-500.0,0.0001506,2]
[398894455,1765967065600,-500.0,0.0001506,2]
[398894456,1765967065624,-500.0,0.0001506,2]
[398894457,1765967065648,-500.0,0.0001506,2]
[398894458,1765967065671,-500.0,0.0001506,2]
[398894459,1765967065698,-500.0,0.0001506,2]
[398894460,1765967065720,-519.19864074,0.0001506,2]
[398894461,1765967065745,-500.0,0.0001506,2]
[398894462,1765967065770,-500.0,0.0001506,2]
[398894463,1765967065794,-500.0,0.0001506,2]
[398894464,1765967065820,-500.0,0.0001506,2]
[398894465,1765967065844,-500.0,0.0001506,2]
[398894466,1765967065868,-500.0,0.0001506,2]
[398894467,1765967065892,-500.0,0.0001506,2]
[398894468,1765967065915,-500.0,0.0001506,2]
[398894469,1765967065939,-500.0,0.0001506,2]
[398894470,1765967065963,-500.0,0.0001506,2]
[398894471,1765967065986,-648.48617937,0.0001506,2]
[398894472,1765967066019,-500.0,0.0001506,2]
[398894473,1765967066046,-500.0,0.0001506,2]
[398894474,1765967066072,-500.0,0.0001506,2]
[398894475,1765967066097,-537.86593135,0.0001506,2]
[398894476,1765967066124,-500.0,0.0001506,2]
[398894477,1765967066148,-500.0,0.0001506,2]
[398894478,1765967066169,-500.0,0.0001506,2]
[398894479,1765967066194,-500.0,0.0001506,2]
[398894480,1765967066219,-500.0,0.0001506,2]
[398894481,1765967066247,-500.0,0.0001506,2]
[398894482,1765967066271,-500.0,0.0001506,2]
[398894483,1765967066298,-500.0,0.0001506,2]
[398894484,1765967066322,-500.0,0.0001506,2]
[398894485,1765967066346,-2125.363,0.00015061,2]
[398894486,1765967066369,-500.0,0.00015061,2]
[398894487,1765967066391,-500.0,0.00015062,2]
[398894488,1765967066415,-185.99150409,0.00015062,2]
[398894489,1765967066436,-377.92408828,0.00015062,2]
[398894490,1765967066465,-316.07558357,0.00015062,2]
[398894491,1765967066488,-500.0,0.00015063,2]
[398894492,1765967066514,-500.0,0.00015063,2]
[398894493,1765967075233,500.0,0.00015063,2]
[398894494,1765967081578,-16991.7524779,0.00015063,2]
[398894495,1765967087295,-50000.0,0.00015063,2]
[398894521,1765967287841,247.770514,7.945e-05,2]
[398894539,1765967323529,95638.55,0.00016,4]
[398894540,1765967323554,100000.0,0.00016,4]
[398894541,1765967323578,100000.0,0.00016,4]
[398894542,1765967323601,100000.0,0.00016,4]
[398894543,1765967323625,100000.0,0.00016,4]
[398894554,1765967432096,-1004.24164491,0.00013,2]
[398894555,1765967432106,-781.38546325,0.00013988,2]
[398894556,1765967432203,-418.61453675,0.00013988,2]
[398894557,1765967432212,-104.38546325,0.00013988,2]
[398894558,1765967432224,-195.61453675,0.00013988,2]
[398894559,1765967432232,-64.8899836,0.00013988,2]
[398894561,1765967432967,-0.37538841,0.00013988,2]
[398894562,1765967432978,-1024.69946947,0.00013988,2]
[398894565,1765967438140,-110.03515852,0.00013988,2]
[398894566,1765967438150,-300.0,0.00013988,2]
[398894567,1765967438160,-500.0,0.00013989,2]
[398894568,1765967438169,-500.0,0.00013989,2]
[398894569,1765967438179,-500.0,0.00013989,2]
[398894570,1765967438188,-154.29118143,0.00013989,2]
[398894571,1765967438198,-500.0,0.00013989,2]
[398894572,1765967438208,-500.0,0.00013989,2]
[398894573,1765967438217,-500.0,0.00013989,2]
[398894574,1765967438227,-500.0,0.00013989,2]
[398894575,1765967438237,-500.0,0.00013989,2]
[398894576,1765967438247,-500.0,0.00013989,2]
[398894577,1765967438256,-500.0,0.00013989,2]
[398894578,1765967438266,-500.0,0.00013989,2]
[398894579,1765967438275,-500.0,0.00013989,2]
[398894580,1765967438285,-500.0,0.00013989,2]
[398894581,1765967438295,-500.0,0.00013989,2]
[398894582,1765967438305,-500.0,0.00013989,2]
[398894583,1765967438314,-500.0,0.00013989,2]
[398894584,1765967438327,-500.0,0.00013989,2]
[398894585,1765967438337,-623.15195984,0.00013989,2]
[398894586,1765967438348,-500.0,0.00013989,2]
[398894587,1765967438357,-500.0,0.00013989,2]
[398894588,1765967438367,-500.0,0.00013989,2]
[398894589,1765967438377,-154.29118143,0.00013989,2]
[398894590,1765967438387,-345.70881857,0.00013989,2]
[398894591,1765967438398,-500.0,0.00013989,2]
[398894592,1765967438407,-502.1331823,0.00013989,2]
[398894593,1765967438416,-500.0,0.00013989,2]
[398894594,1765967438426,-500.0,0.00013989,2]
[398894595,1765967438435,-500.0,0.00013989,2]
[398894596,1765967438445,-500.0,0.00013989,2]
[398894597,1765967438456,-500.0,0.00013989,2]
[398894599,1765967438466,-500.0,0.00013989,2]
[398894601,1765967438476,-48517.89028324,0.0001399,2]
[398894603,1765967438486,-200.0,0.00014192,2]
[398894605,1765967438496,-5702.78,0.00014236,2]
[398894607,1765967438506,-7935.0,0.00014285,2]
[398894609,1765967438516,-300.0,0.000143,2]
[398894611,1765967438525,-250.0,0.000143,2]
[398894613,1765967438535,-302.64270691,0.000143,2]
[398894615,1765967438544,-195.0,0.000143,2]
[398894617,1765967438554,-1284.1782,0.00014963,2]
[398894619,1765967438564,-151.67,0.00014963,2]
[398894621,1765967438573,-23238.1446,0.00014963,2]
[398894623,1765967438583,-430009.0557,0.00014963,2]
[398894625,1765967438593,-10703.86291925,0.00014968,2]
[398894627,1765967438603,-195.3,0.00014998,2]
[398894629,1765967438612,-4120.27966053,0.00015,2]
[398894631,1765967438621,-3885.73184745,0.00015,2]
[398894633,1765967438632,-279.50214594,0.0001506,2]
[398894635,1765967438642,-4048.56264106,0.0001506,2]
[398894637,1765967438653,-898.08433789,0.0001506,2]
[398894638,1765967438662,-151.0,0.0001506,2]
[398894639,1765967438672,-751.3603992,0.00015062,2]
[398894640,1765967438682,-4513.0376529,0.00015062,2]
[398894641,1765967438692,-300.0,0.00015062,2]
[398894642,1765967438701,-500.0,0.00015062,2]
[398894643,1765967438711,-369.0664507,0.00015062,2]
[398894644,1765967438722,-214870.55012625,0.00015063,2]
[398894645,1765967438731,-992.69,0.00015068,2]
[398894646,1765967438741,-300.0,0.0001507,2]
[398894647,1765967438750,-300.0,0.0001507,2]
[398894648,1765967438760,-1000.0,0.00015094,2]
[398894649,1765967438769,-166.66,0.00015172,2]
[398894650,1765967438779,-500.0,0.00015185,2]
[398894651,1765967438788,-200.0,0.00015185,2]
[398894652,1765967438800,-200.0,0.00015185,2]
[398894653,1765967438810,-10703.86291922,0.00015187,2]
[398894654,1765967438819,-500.0,0.00015193,2]
[398894655,1765967438829,-468.97910059,0.00015193,2]
[398894656,1765967438839,-500.0,0.00015193,2]
[398894657,1765967438849,-500.0,0.00015193,2]
[398894658,1765967438858,-500.0,0.00015193,2]
[398894659,1765967438867,-503.9543882,0.00015193,2]
[398894660,1765967438879,-500.0,0.00015193,2]
[398894661,1765967438888,-500.0,0.00015193,2]
[398894662,1765967438898,-500.0,0.00015193,2]
[398894663,1765967438907,-500.0,0.00015193,2]
[398894664,1765967438917,-500.0,0.00015193,2]
[398894665,1765967438926,-500.0,0.00015193,2]
[398894666,1765967438935,-500.0,0.00015193,2]
[398894667,1765967438945,-534.56287078,0.00015193,2]
[398894668,1765967438955,-514.23721699,0.00015193,2]
[398894669,1765967438964,-500.0,0.00015193,2]
[398894670,1765967438974,-500.0,0.00015193,2]
[398894671,1765967438983,-500.0,0.00015193,2]
[398894672,1765967438993,-500.0,0.00015193,2]
[398894673,1765967439002,-279.99666033,0.00015193,2]
[398894674,1765967439011,-207.92024004,0.00015193,2]
[398894675,1765967439021,-500.0,0.00015193,2]
[398894676,1765967439030,-500.0,0.00015193,2]
[398894677,1765967439040,-510.6542677,0.00015193,2]
[398894678,1765967439050,-500.0,0.00015193,2]
[398894679,1765967439059,-500.0,0.00015193,2]
[398894680,1765967439069,-8253.40506099,0.00015193,2]
[398894681,1765967439079,-464.0,0.00015284,2]
[398894682,1765967439089,-500.0,0.00015293,2]
[398894683,1765967439099,-667.89953424,0.00015293,2]
[398894684,1765967439109,-420.0,0.00015325,2]
[398894685,1765967439118,-420.0,0.00015325,2]
[398894686,1765967439128,-1680.0,0.00015387,2]
[398894687,1765967439138,-8253.40506092,0.00015387,2]
[398894688,1765967439147,-10058.14,0.00015393,2]
[398894689,1765967439157,-150.99,0.00015393,2]
[398894690,1765967439166,-505.62829288,0.000154,2]
[398894691,1765967439175,-10703.86291922,0.00015407,2]
[398894692,1765967439184,-166.66,0.00015466,2]
[398894693,1765967439193,-8253.40506092,0.00015582,2]
[398894694,1765967439203,-10703.86291922,0.00015626,2]
[398894695,1765967439213,-8253.40506092,0.00015776,2]
[398894696,1765967439222,-234.0,0.00015821,2]
[398894697,1765967439231,-10703.86291922,0.00015846,2]
[398894698,1765967439240,-1000.0,0.00015884,2]
[398894699,1765967439249,-721.0,0.0001589,2]
[398894700,1765967439258,-721.0,0.0001589,2]
[398894701,1765967439267,-721.0,0.0001589,2]
[398894702,1765967439277,-500.0,0.00015914,2]
[398894703,1765967439288,-667.89953423,0.00015961,2]
[398894704,1765967439297,-8253.40506092,0.00015971,2]
[398894705,1765967439307,-11112.25512909,0.00016,2]
[398894706,1765967439316,-144870.2598396,0.00016,2]
[398894707,1765967439325,-115542.3203807,0.00016,4]
[398894708,1765967439334,-10703.86291922,0.00016065,2]
[398894709,1765967439343,-9999.99,0.00016116,2]
[398894710,1765967439352,-487.58127426,0.00016155,2]
[398894711,1765967439361,-8253.40506092,0.00016165,2]
[398894712,1765967439371,-8861.99759076,0.00016215,2]
[398894713,1765967439380,-10703.86291922,0.00016285,2]
[398894714,1765967439389,-8253.40506092,0.0001636,2]
[398894715,1765967439399,-1000.0,0.00016438,2]
[398894716,1765967439408,-961.3562878,0.00016438,2]
[398894717,1765967439417,-300.0,0.00016438,2]
[398894718,1765967439427,-300.0,0.00016438,2]
[398894719,1765967439436,-300.0,0.00016438,2]
[398894720,1765967439445,-300.0,0.00016438,2]
[398894721,1765967439455,-300.0,0.00016438,2]
[398894722,1765967439465,-300.0,0.00016438,2]
[398894723,1765967439474,-300.0,0.00016438,2]
[398894724,1765967439483,-300.0,0.00016438,2]
[398894725,1765967439493,-300.0,0.00016438,2]
[398894726,1765967439502,-300.0,0.00016438,2]
[398894727,1765967439511,-300.0,0.00016438,2]
[398894728,1765967439520,-300.0,0.00016438,2]
[398894729,1765967439529,-300.0,0.00016438,2]
[398894730,1765967439538,-300.0,0.00016438,2]
[398894731,1765967439547,-300.0,0.00016438,2]
[398894732,1765967439557,-300.0,0.00016438,2]
[398894733,1765967439566,-300.0,0.00016438,2]
[398894734,1765967439576,-300.0,0.00016438,2]
[398894735,1765967439585,-300.0,0.00016438,2]
[398894736,1765967439594,-300.0,0.00016438,2]
[398894737,1765967439603,-300.0,0.00016438,2]
[398894738,1765967439613,-300.0,0.00016438,2]
[398894739,1765967439622,-197.26900433,0.00016438,2]
[398894740,1765967439631,-867.65,0.00016438,2]
[398894741,1765967439640,-500.0,0.00016438,2]
[398894742,1765967439651,-500.0,0.00016438,2]
[398894743,1765967439659,-500.0,0.00016438,2]
[398894744,1765967439668,-500.0,0.00016438,2]
[398894745,1765967439677,-500.0,0.00016438,2]
[398894746,1765967439686,-500.0,0.00016438,2]
[398894747,1765967439695,-500.0,0.00016438,2]
[398894748,1765967439704,-500.0,0.00016438,2]
[398894749,1765967439713,-500.0,0.00016438,2]
[398894750,1765967439721,-500.0,0.00016438,2]
[398894751,1765967439732,-500.0,0.00016438,2]
[398894752,1765967439741,-500.0,0.00016438,2]
[398894753,1765967439751,-500.0,0.00016438,2]
[398894754,1765967439759,-500.0,0.00016438,2]
[398894755,1765967439768,-500.0,0.00016438,2]
[398894756,1765967439777,-500.0,0.00016438,2]
[398894757,1765967439787,-500.0,0.00016438,2]
[398894758,1765967439800,-500.0,0.00016438,2]
[398894759,1765967439809,-500.0,0.00016438,2]
[398894760,1765967439819,-500.0,0.00016438,2]
[398894761,1765967439828,-500.0,0.00016438,2]
[398894762,1765967439838,-500.0,0.00016438,2]
[398894763,1765967439849,-500.0,0.00016438,2]
[398894764,1765967439858,-500.0,0.00016438,2]
[398894765,1765967439867,-500.0,0.00016438,2]
[398894766,1765967439878,-500.0,0.00016438,2]
[398894767,1765967439887,-500.0,0.00016438,2]
[398894768,1765967439896,-500.0,0.00016438,2]
[398894769,1765967439905,-500.0,0.00016438,2]
[398894770,1765967439914,-500.0,0.00016438,2]
[398894771,1765967439923,-500.0,0.00016438,2]
[398894772,1765967439932,-500.0,0.00016438,2]
[398894773,1765967439941,-500.0,0.00016438,2]
[398894774,1765967439950,-500.0,0.00016438,2]
[398894775,1765967439959,-500.0,0.00016438,2]
[398894776,1765967439969,-500.0,0.00016438,2]
[398894777,1765967439978,-500.0,0.00016438,2]
[398894778,1765967439987,-500.0,0.00016438,2]
[398894779,1765967439998,-500.0,0.00016438,2]
[398894780,1765967440008,-500.0,0.00016438,2]
[398894781,1765967440018,-500.0,0.00016438,2]
[398894782,1765967440027,-500.0,0.00016438,2]
[398894783,1765967440036,-500.0,0.00016438,2]
[398894784,1765967440045,-500.0,0.00016438,2]
[398894785,1765967440055,-500.0,0.00016438,2]
[398894786,1765967440064,-500.0,0.00016438,2]
[398894787,1765967440073,-500.0,0.00016438,2]
[398894788,1765967440083,-500.0,0.00016438,2]
[398894789,1765967440092,-500.0,0.00016438,2]
[398894790,1765967440101,-500.0,0.00016438,2]
[398894791,1765967440110,-500.0,0.00016438,2]
[398894792,1765967440119,-500.0,0.00016438,2]
[398894793,1765967440128,-500.0,0.00016438,2]
[398894794,1765967440137,-500.0,0.00016438,2]
[398894795,1765967440146,-500.0,0.00016438,2]
[398894796,1765967440154,-500.0,0.00016438,2]
[398894797,1765967440163,-500.0,0.00016438,2]
[398894798,1765967440173,-500.0,0.00016438,2]
[398894799,1765967440182,-500.0,0.00016438,2]
[398894800,1765967440191,-500.0,0.00016438,2]
[398894801,1765967440200,-500.0,0.00016438,2]
[398894802,1765967440208,-500.0,0.00016438,2]
[398894803,1765967440218,-500.0,0.00016438,2]
[398894804,1765967440227,-500.0,0.00016438,2]
[398894805,1765967440236,-500.0,0.00016438,2]
[398894806,1765967440245,-183.43693291,0.00016438,2]
[398894807,1765967440254,-500.0,0.00016438,2]
[398894808,1765967440263,-500.0,0.00016438,2]
[398894809,1765967440272,-500.0,0.00016438,2]
[398894810,1765967440281,-500.0,0.00016438,2]
[398894811,1765967440290,-500.0,0.00016438,2]
[398894812,1765967440299,-600.0,0.00016438,2]
[398894813,1765967440308,-715.0,0.00016438,2]
[398894814,1765967440317,-715.0,0.00016438,2]
[398894815,1765967440326,-801.71075194,0.00016438,2]
[398894816,1765967440334,-10703.86291922,0.00016504,2]
[398894817,1765967440343,-481.46730423,0.0001651,2]
[398894818,1765967440352,-151.0,0.00016551,2]
[398894819,1765967440361,-583.51999942,0.00016553,2]
[398894820,1765967440370,-20747.63812795,0.00016554,2]
[398894821,1765967440379,-8253.40506092,0.00016554,2]
[398894822,1765967440388,-300.0,0.00016568,2]
[398894823,1765967440397,-250.0,0.00016568,2]
[398894824,1765967440406,-5000.0,0.00016568,3]
[398894825,1765967440415,-1257.48357959,0.00016568,3]
[398894826,1765967440424,-185.57590641,0.00016568,2]
[398894827,1765967440433,-2500.0,0.00016568,2]
[398894828,1765967440442,-2500.0,0.00016568,2]
[398894829,1765967440451,-2500.0,0.00016568,2]
[398894830,1765967440460,-2500.0,0.00016568,2]
[398894831,1765967440470,-2500.0,0.00016568,2]
[398894832,1765967440478,-358.48883582,0.000166,2]
[398894833,1765967440488,-667.89953423,0.00016629,2]
[398894834,1765967440497,-500.0,0.00016685,2]
[398894835,1765967440506,-751.3603992,0.00016691,2]
[398894836,1765967440515,-4513.0376529,0.00016691,2]
[398894837,1765967440524,-867.65,0.00016712,2]
[398894838,1765967440533,-500.0,0.00016712,2]
[398894839,1765967440542,-300.0,0.00016713,2]
[398894840,1765967440552,-1000.0,0.00016713,2]
[398894841,1765967440561,-1000.0,0.00016713,2]
[398894842,1765967440570,-1000.0,0.00016713,2]
[398894843,1765967440579,-1000.0,0.00016713,2]
[398894844,1765967440588,-979.42513944,0.00016713,2]
[398894845,1765967440597,-2112.0,0.00016713,2]
[398894846,1765967440606,-1000.0,0.00016713,2]
[398894847,1765967440615,-1000.0,0.00016713,2]
[398894848,1765967440624,-1000.0,0.00016713,2]
[398894849,1765967440633,-2000.0,0.00016713,2]
[398894850,1765967440642,-2000.0,0.00016713,2]
[398894851,1765967440651,-1000.0,0.00016713,2]
[398894852,1765967440660,-2000.0,0.00016713,2]
[398894853,1765967440669,-1000.0,0.00016713,2]
[398894854,1765967440678,-2000.0,0.00016713,2]
[398894855,1765967440686,-1000.0,0.00016713,2]
[398894856,1765967440695,-553.64373807,0.00016713,2]
[398894857,1765967440704,-620.0,0.00016713,2]
[398894858,1765967440713,-889.58176391,0.00016713,2]
[398894859,1765967440722,-675.30233005,0.00016713,2]
[398894860,1765967440731,-220.74077702,0.00016713,2]
[398894861,1765967440740,-500.0,0.00016713,2]
[398894862,1765967440749,-500.0,0.00016713,2]
[398894863,1765967440758,-500.0,0.00016713,2]
[398894864,1765967440767,-500.0,0.00016713,2]